fUST/lending_fUST_20250929
["ID","MTS","AMOUNT","RATE_DAILY","PERIOD"]
[388379931,1759138248696,-480.0,0.00027397,7]
[388379932,1759138248705,-583.21,0.00027397,7]
[388379933,1759138248715,-558.6,0.00027397,7]
[388379934,1759138248725,-480.0,0.00027397,7]
[388379935,1759138248735,-480.0,0.00027397,7]
[388379936,1759138248744,-151.0,0.00027397,7]
[388379937,1759138248754,-151.0,0.00027397,7]
[388379938,1759138248764,-480.0,0.00027397,7]
[388379939,1759138248774,-151.0,0.00027397,7]
[388379940,1759138248783,-151.0,0.00027397,7]
[388379941,1759138248793,-151.0,0.00027397,7]
[388379942,1759138248803,-830.73,0.00027397,7]
[388379943,1759138248813,-493.62576537,0.00027397,7]
[388379944,1759138248824,-151.0,0.00027397,7]
[388379945,1759138248833,-970.7,0.00027397,7]
[388379946,1759138248842,-480.0,0.00027397,7]
[388379947,1759138248851,-219.78802183,0.00027397,7]
[388379948,1759138248859,-610.79,0.00027397,7]
[388379949,1759138248869,-480.0,0.00027397,7]
[388379950,1759138248879,-480.0,0.00027397,7]
[388379951,1759138248889,-805.93,0.00027397,7]
[388379952,1759138248899,-480.0,0.00027397,7]
[388379953,1759138248909,-944.42,0.00027397,7]
[388379954,1759138248919,-3184.82,0.00027397,7]
[388379955,1759138248930,-480.45485604,0.00027397,2]
[388379956,1759138248940,-480.0,0.00027397,7]
[388379957,1759138248949,-593.42,0.00027397,7]
[388379958,1759138248959,-151.0,0.00027397,7]
[388379959,1759138248968,-151.0,0.00027397,7]
[388379960,1759138248977,-151.0,0.00027397,7]
[388379961,1759138248988,-264.083612,0.00027397,7]
[388379962,1759138248997,-480.0,0.00027397,7]
[388379963,1759138249007,-480.0,0.00027397,7]
[388379964,1759138249017,-1376.65,0.00027397,7]
[388379965,1759138249026,-151.0,0.00027397,7]
[388379966,1759138249036,-151.0,0.00027397,7]
[388379967,1759138249046,-680.74,0.00027397,7]
[388379968,1759138249058,-151.0,0.00027397,7]
[388379969,1759138249070,-151.0,0.00027397,7]
[388379970,1759138249080,-151.0,0.00027397,7]
[388379971,1759138249091,-151.0,0.00027397,7]
[388379972,1759138249103,-151.0,0.00027397,7]
[388379973,1759138249112,-151.0,0.00027397,7]
[388379974,1759138249122,-151.0,0.00027397,7]
[388379975,1759138249134,-151.0,0.00027397,7]
[388379976,1759138249144,-480.0,0.00027397,7]
[388379977,1759138249154,-300.817096,0.00027397,7]
[388379978,1759138249164,-480.0,0.00027397,7]
[388379979,1759138249173,-1015.79,0.00027397,7]
[388379980,1759138249182,-151.0,0.00027397,7]
[388379981,1759138249192,-480.0,0.00027397,7]
[388379982,1759138249201,-480.0,0.00027397,7]
[388379983,1759138249211,-1819.12,0.00027397,7]
[388379984,1759138249220,-155.95996062,0.00027397,7]
[388379985,1759138249230,-1099.25,0.00027397,7]
[388379986,1759138249240,-480.0,0.00027397,7]
[388379987,1759138249250,-1051.85,0.00027397,7]
[388379988,1759138249259,-480.0,0.00027397,7]
[388379989,1759138249269,-151.0,0.00027397,7]
[388379990,1759138249279,-151.0,0.00027397,7]
[388379991,1759138249288,-413.35317121,0.00027397,7]
[388379992,1759138249298,-151.0,0.00027397,7]
[388379993,1759138249308,-151.0,0.00027397,7]
[388379994,1759138249317,-480.0,0.00027397,7]
[388379995,1759138249327,-151.0,0.00027397,7]
[388379996,1759138249337,-268.258963,0.00027397,7]
[388379997,1759138249347,-480.0,0.00027397,7]
[388379998,1759138249356,-480.0,0.00027397,7]
[388379999,1759138249367,-480.0,0.00027397,7]
[388380000,1759138249376,-531.84,0.00027397,7]
[388380001,1759138249387,-480.0,0.00027397,7]
[388380002,1759138249398,-151.0,0.00027397,7]
[388380003,1759138249408,-151.0,0.00027397,7]
[388380004,1759138249419,-435.25189358,0.00027397,7]
[388380005,1759138249429,-1080.8,0.00027397,7]
[388380006,1759138249438,-500.0,0.00027397,7]
[388380007,1759138249449,-221.26905103,0.00027397,7]
[388380008,1759138249459,-817.12,0.00027397,7]
[388380009,1759138249468,-592.46,0.00027397,7]
[388380010,1759138249478,-480.0,0.00027397,7]
[388380011,1759138249505,-483.4339518,0.00027397,7]
[388380012,1759138249515,-974.55,0.00027397,7]
[388380013,1759138249525,-805.49,0.00027397,7]
[388380014,1759138249535,-480.0,0.00027397,7]
[388380015,1759138249545,-480.0,0.00027397,7]
[388380016,1759138249554,-610.35,0.00027397,7]
[388380017,1759138249564,-151.0,0.00027397,7]
[388380018,1759138249574,-151.0,0.00027397,7]
[388380019,1759138249583,-151.0,0.00027397,7]
[388380020,1759138249594,-480.0,0.00027397,7]
[388380021,1759138249604,-571.04,0.00027397,7]
[388380022,1759138249614,-767.3,0.00027397,7]
[388380023,1759138249624,-893.21,0.00027397,7]
[388380024,1759138249634,-2970.42,0.00027397,7]
[388380025,1759138249644,-151.0,0.00027397,7]
[388380026,1759138249655,-151.0,0.00027397,7]
[388380027,1759138249664,-591.15,0.00027397,7]
[388380028,1759138249674,-2236.08,0.00027397,7]
[388380029,1759138249684,-480.0,0.00027397,7]
[388380030,1759138249694,-480.0,0.00027397,7]
[388380031,1759138249703,-480.0,0.00027397,7]
[388380032,1759138249713,-480.0,0.00027397,7]
[388380033,1759138249722,-926.52,0.00027397,7]
[388380034,1759138249732,-564.03,0.00027397,7]
[388380035,1759138249742,-480.0,0.00027397,7]
[388380036,1759138249752,-480.0,0.00027397,7]
[388380037,1759138249761,-977.93,0.00027397,7]
[388380038,1759138249771,-1523.82,0.00027397,7]
[388380039,1759138249781,-480.0,0.00027397,7]
[388380040,1759138249791,-481.01703753,0.00027397,7]
[388380041,1759138249800,-1098.47,0.00027397,7]
[388380042,1759138249810,-480.0,0.00027397,7]
[388380043,1759138249819,-500.0,0.00027397,7]
[388380044,1759138249829,-453.39304695,0.00027397,7]
[388380045,1759138249840,-480.0,0.00027397,7]
[388380046,1759138249849,-480.0,0.00027397,7]
[388380047,1759138249859,-480.0,0.00027397,7]
[388380048,1759138249869,-153.293697,0.00027397,7]
[388380049,1759138249879,-536.8,0.00027397,7]
[388380050,1759138249888,-151.0,0.00027397,7]
[388380051,1759138249897,-155.529408,0.00027397,7]
[388380052,1759138249907,-543.41,0.00027397,7]
[388380053,1759138249916,-948.68,0.00027397,7]
[388380054,1759138249926,-480.0,0.00027397,7]
[388380055,1759138249935,-480.0,0.00027397,7]
[388380056,1759138249945,-771.92,0.00027397,7]
[388380057,1759138249955,-785.53,0.00027397,7]
[388380058,1759138249964,-1117.74,0.00027397,7]
[388380059,1759138249973,-1547.89,0.00027397,7]
[388380060,1759138249983,-151.0,0.00027397,7]
[388380061,1759138249992,-151.0,0.00027397,7]
[388380062,1759138250001,-151.0,0.00027397,7]
[388380063,1759138250011,-864.4,0.00027397,7]
[388380064,1759138250020,-195.152204,0.00027397,7]
[388380065,1759138250030,-195.152204,0.00027397,7]
[388380066,1759138250040,-151.0,0.00027397,7]
[388380067,1759138250051,-480.0,0.00027397,7]
[388380068,1759138250063,-195.152204,0.00027397,7]
[388380069,1759138250071,-151.0,0.00027397,7]
[388380070,1759138250079,-151.0,0.00027397,7]
[388380071,1759138250088,-195.152204,0.00027397,7]
[388380072,1759138250098,-195.152204,0.00027397,7]
[388380073,1759138250108,-550.14,0.00027397,7]
[388380074,1759138250117,-151.0,0.00027397,7]
[388380075,1759138250126,-195.152204,0.00027397,7]
[388380076,1759138250135,-151.0,0.00027397,7]
[388380077,1759138250145,-301.346215,0.00027397,7]
[388380078,1759138250155,-177.83949429,0.00027397,7]
[388380079,1759138250165,-195.152204,0.00027397,7]
[388380080,1759138250174,-195.152204,0.00027397,7]
[388380081,1759138250184,-195.152204,0.00027397,7]
[388380082,1759138250193,-480.0,0.00027397,7]
[388380083,1759138250201,-195.152204,0.00027397,7]
[388380084,1759138250209,-195.152204,0.00027397,7]
[388380085,1759138250218,-195.152204,0.00027397,7]
[388380086,1759138250227,-480.0,0.00027397,7]
[388380087,1759138250236,-779.05,0.00027397,7]
[388380088,1759138250245,-480.0,0.00027397,7]
[388380089,1759138250255,-480.0,0.00027397,7]
[388380090,1759138250264,-480.0,0.00027397,7]
[388380091,1759138250273,-1973.98,0.00027397,7]
[388380092,1759138250282,-480.0,0.00027397,7]
[388380093,1759138250292,-480.0,0.00027397,7]
[388380094,1759138250302,-1427.44,0.00027397,7]
[388380095,1759138250313,-480.0,0.00027397,7]
[388380096,1759138250323,-954.8,0.00027397,7]
[388380097,1759138250332,-1540.07,0.00027397,7]
[388380098,1759138250341,-480.0,0.00027397,7]
[388380099,1759138250351,-480.0,0.00027397,7]
[388380100,1759138250360,-798.74,0.00027397,7]
[388380101,1759138250369,-859.73,0.00027397,7]
[388380102,1759138250379,-480.0,0.00027397,7]
[388380103,1759138250388,-480.0,0.00027397,7]
[388380104,1759138250398,-813.1,0.00027397,7]
[388380105,1759138250408,-556.47,0.00027397,7]
[388380106,1759138250417,-877.35,0.00027397,7]
[388380107,1759138250427,-480.0,0.00027397,7]
[388380108,1759138250436,-483.06591017,0.00027397,7]
[388380109,1759138250446,-530.15,0.00027397,7]
[388380110,1759138250455,-480.0,0.00027397,7]
[388380111,1759138250465,-550.02,0.00027397,7]
[388380112,1759138250475,-480.0,0.00027397,7]
[388380113,1759138250484,-480.0,0.00027397,7]
[388380114,1759138250493,-481.44,0.00027397,7]
[388380115,1759138250503,-1580.36,0.00027397,7]
[388380116,1759138250511,-883.52,0.00027397,7]
[388380117,1759138250521,-151.0,0.00027397,7]
[388380118,1759138250531,-480.0,0.00027397,7]
[388380119,1759138250541,-151.0,0.00027397,7]
[388380120,1759138250551,-151.151682,0.00027397,7]
[388380121,1759138250560,-151.0,0.00027397,7]
[388380122,1759138250570,-151.151682,0.00027397,7]
[388380123,1759138250579,-849.11,0.00027397,7]
[388380124,1759138250589,-480.0,0.00027397,7]
[388380125,1759138250598,-151.151682,0.00027397,7]
[388380126,1759138250607,-151.0,0.00027397,7]
[388380127,1759138250616,-480.0,0.00027397,7]
[388380128,1759138250626,-151.151682,0.00027397,7]
[388380129,1759138250636,-480.0,0.00027397,7]
[388380130,1759138250645,-151.151682,0.00027397,7]
[388380131,1759138250657,-151.151682,0.00027397,7]
[388380132,1759138250666,-151.151682,0.00027397,7]
[388380133,1759138250676,-694.56,0.00027397,7]
[388380134,1759138250685,-151.151682,0.00027397,7]
[388380135,1759138250694,-151.151682,0.00027397,7]
[388380136,1759138250704,-151.151682,0.00027397,7]
[388380137,1759138250713,-151.151682,0.00027397,7]
[388380138,1759138250722,-151.151682,0.00027397,7]
[388380139,1759138250732,-480.0,0.00027397,7]
[388380140,1759138250741,-1386.42,0.00027397,7]
[388380141,1759138250751,-151.0,0.00027397,7]
[388380142,1759138250760,-480.0,0.00027397,7]
[388380143,1759138250770,-480.0,0.00027397,7]
[388380144,1759138250779,-151.0,0.00027397,7]
[388380145,1759138250789,-151.0,0.00027397,7]
[388380146,1759138250798,-845.36,0.00027397,7]
[388380147,1759138250807,-480.0,0.00027397,7]
[388380148,1759138250817,-238.36401353,0.00027397,7]
[388380149,1759138250826,-480.0,0.00027397,7]
[388380150,1759138250835,-2983.24,0.00027397,7]
[388380151,1759138250845,-480.0,0.00027397,7]
[388380152,1759138250853,-480.0,0.00027397,7]
[388380153,1759138250862,-480.0,0.00027397,7]
[388380154,1759138250870,-480.0,0.00027397,7]
[388380155,1759138250878,-903.85,0.00027397,7]
[388380156,1759138250884,-151.0,0.00027397,7]
[388380157,1759138250894,-480.0,0.00027397,7]
[388380158,1759138250905,-151.0,0.00027397,7]
[388380159,1759138250914,-151.0,0.00027397,7]
[388380160,1759138250924,-837.91,0.00027397,7]
[388380161,1759138250933,-480.0,0.00027397,7]
[388380162,1759138250943,-151.0,0.00027397,7]
[388380163,1759138250952,-151.0,0.00027397,7]
[388380164,1759138250961,-151.0,0.00027397,7]
[388380165,1759138250970,-480.0,0.00027397,7]
[388380166,1759138250979,-589.27,0.00027397,7]
[388380167,1759138250988,-480.0,0.00027397,7]
[388380168,1759138250997,-480.0,0.00027397,7]
[388380169,1759138251006,-297.36471193,0.00027397,7]
[388380170,1759138251015,-821.74,0.00027397,7]
[388380171,1759138251024,-480.0,0.00027397,7]
[388380172,1759138251033,-480.0,0.00027397,7]
[388380173,1759138251043,-860.7,0.00027397,7]
[388380174,1759138251053,-480.0,0.00027397,7]
[388380175,1759138251066,-480.0,0.00027397,7]
[388380176,1759138251075,-480.0,0.00027397,7]
[388380177,1759138251085,-480.0,0.00027397,7]
[388380178,1759138251095,-892.52,0.00027397,7]
[388380179,1759138251106,-480.0,0.00027397,7]
[388380180,1759138251115,-480.0,0.00027397,7]
[388380181,1759138251124,-505.9,0.00027397,7]
[388380182,1759138251301,-480.0,0.00027397,7]
[388380183,1759138251311,-1017.61,0.00027397,7]
[388380184,1759138251320,-151.0,0.00027397,7]
[388380185,1759138251329,-153.06758,0.00027397,7]
[388380186,1759138251338,-480.0,0.00027397,7]
[388380187,1759138251347,-541.85,0.00027397,7]
[388380188,1759138251357,-1197.94,0.00027397,7]
[388380189,1759138251365,-326.95579529,0.00027397,7]
[388380190,1759138251374,-203.59,0.00027397,7]
[388380191,1759138251383,-480.0,0.00027397,7]
[388380192,1759138251392,-480.0,0.00027397,7]
[388380193,1759138251401,-765.58,0.00027397,7]
[388380194,1759138251410,-480.0,0.00027397,7]
[388380195,1759138251419,-482.83070491,0.00027397,7]
[388380196,1759138251428,-481.7384302,0.00027397,7]
[388380197,1759138251437,-480.0,0.00027397,7]
[388380198,1759138251447,-484.91925,0.00027397,7]
[388380199,1759138251456,-480.0,0.00027397,7]
[388380200,1759138251465,-480.0,0.00027397,7]
[388380201,1759138251474,-1104.12,0.00027397,7]
[388380202,1759138251483,-480.0,0.00027397,7]
[388380203,1759138251492,-686.72,0.00027397,7]
[388380204,1759138251501,-870.42,0.00027397,7]
[388380205,1759138251510,-1234.14,0.00027397,7]
[388380206,1759138251519,-480.0,0.00027397,7]
[388380207,1759138251528,-480.0,0.00027397,7]
[388380208,1759138251537,-728.03,0.00027397,7]
[388380209,1759138251546,-2740.82,0.00027397,7]
[388380210,1759138251556,-480.0,0.00027397,7]
[388380211,1759138251565,-749.19,0.00027397,7]
[388380212,1759138251575,-480.0,0.00027397,7]
[388380213,1759138251584,-1013.53,0.00027397,7]
[388380214,1759138251594,-480.0,0.00027397,7]
[388380215,1759138251603,-992.04,0.00027397,7]
[388380216,1759138251612,-151.0,0.00027397,7]
[388380217,1759138251621,-151.0,0.00027397,7]
[388380218,1759138251631,-151.0,0.00027397,7]
[388380219,1759138251640,-480.0,0.00027397,7]
[388380220,1759138251649,-151.0,0.00027397,7]
[388380221,1759138251659,-151.0,0.00027397,7]
[388380222,1759138251668,-151.0,0.00027397,7]
[388380223,1759138251677,-480.0,0.00027397,7]
[388380224,1759138251687,-480.0,0.00027397,7]
[388380225,1759138251696,-151.0,0.00027397,7]
[388380226,1759138251705,-480.0,0.00027397,7]
[388380227,1759138251714,-151.0,0.00027397,7]
[388380228,1759138251724,-151.0,0.00027397,7]
[388380229,1759138251734,-802.59,0.00027397,7]
[388380230,1759138251743,-151.0,0.00027397,7]
[388380231,1759138251753,-480.0,0.00027397,7]
[388380232,1759138251762,-151.0,0.00027397,7]
[388380233,1759138251772,-162.536182,0.00027397,7]
[388380234,1759138251782,-480.0,0.00027397,7]
[388380235,1759138251791,-600.0,0.00027397,7]
[388380236,1759138251802,-480.0,0.00027397,7]
[388380237,1759138251811,-1103.84,0.00027397,7]
[388380238,1759138251821,-480.0,0.00027397,7]
[388380239,1759138251831,-1567.07,0.00027397,7]
[388380240,1759138251840,-151.0,0.00027397,7]
[388380241,1759138251850,-151.0,0.00027397,7]
[388380242,1759138251860,-480.0,0.00027397,7]
[388380243,1759138251869,-151.0,0.00027397,7]
[388380244,1759138251879,-151.0,0.00027397,7]
[388380245,1759138251888,-151.0,0.00027397,7]
[388380246,1759138251898,-151.0,0.00027397,7]
[388380247,1759138251907,-480.0,0.00027397,7]
[388380248,1759138251916,-480.0,0.00027397,7]
[388380249,1759138251925,-480.0,0.00027397,7]
[388380250,1759138251934,-668.18,0.00027397,7]
[388380251,1759138251942,-390.01336953,0.00027397,7]
[388380252,1759138251950,-151.0,0.00027397,7]
[388380253,1759138251959,-500.0,0.00027397,7]
[388380254,1759138251968,-500.0,0.00027397,7]
[388380255,1759138251976,-151.0,0.00027397,7]
[388380256,1759138251984,-500.0,0.00027397,7]
[388380257,1759138251992,-1278.68,0.00027397,7]
[388380258,1759138252001,-151.0,0.00027397,7]
[388380259,1759138252010,-504.06509231,0.00027397,7]
[388380260,1759138252019,-480.0,0.00027397,7]
[388380261,1759138252028,-252.157268,0.00027397,7]
[388380262,1759138252037,-480.0,0.00027397,7]
[388380263,1759138252047,-480.0,0.00027397,7]
[388380264,1759138252057,-480.0,0.00027397,7]
[388380265,1759138252072,-480.0,0.00027397,7]
[388380266,1759138252083,-151.0,0.00027397,7]
[388380267,1759138252093,-151.0,0.00027397,7]
[388380268,1759138252103,-151.0,0.00027397,7]
[388380269,1759138252112,-480.0,0.00027397,7]
[388380270,1759138252122,-480.0,0.00027397,7]
[388380271,1759138252132,-151.0,0.00027397,7]
[388380272,1759138252143,-151.0,0.00027397,7]
[388380273,1759138252151,-268.974231,0.00027397,7]
[388380274,1759138252163,-480.0,0.00027397,7]
[388380275,1759138252172,-480.0,0.00027397,7]
[388380276,1759138252182,-480.0,0.00027397,7]
[388380277,1759138252191,-480.0,0.00027397,7]
[388380278,1759138252200,-480.0,0.00027397,7]
[388380279,1759138252209,-480.0,0.00027397,7]
[388380280,1759138252218,-210.77066295,0.00027397,7]
[388380281,1759138252227,-521.31,0.00027397,7]
[388380282,1759138252236,-151.0,0.00027397,7]
[388380283,1759138252245,-151.0,0.00027397,7]
[388380284,1759138252254,-480.0,0.00027397,7]
[388380285,1759138252263,-749.45,0.00027397,7]
[388380286,1759138252273,-480.0,0.00027397,7]
[388380287,1759138252282,-5231.52,0.00027397,7]
[388380288,1759138252291,-813.07,0.00027397,7]
[388380289,1759138252300,-151.0,0.00027397,7]
[388380290,1759138252309,-864.73,0.00027397,7]
[388380291,1759138252319,-151.0,0.00027397,7]
[388380292,1759138252328,-151.0,0.00027397,7]
[388380293,1759138252338,-812.19,0.00027397,7]
[388380294,1759138252347,-151.0,0.00027397,7]
[388380295,1759138252356,-166.987989,0.00027397,7]
[388380296,1759138252366,-480.0,0.00027397,7]
[388380297,1759138252376,-166.987989,0.00027397,7]
[388380298,1759138252386,-166.987989,0.00027397,7]
[388380299,1759138252396,-166.987989,0.00027397,7]
[388380300,1759138252407,-733.36,0.00027397,7]
[388380301,1759138252416,-166.987989,0.00027397,7]
[388380302,1759138252426,-166.987989,0.00027397,7]
[388380303,1759138252435,-480.0,0.00027397,7]
[388380304,1759138252444,-2052.82,0.00027397,7]
[388380305,1759138252453,-166.987989,0.00027397,7]
[388380306,1759138252463,-166.987997,0.00027397,7]
[388380307,1759138252472,-1826.19,0.00027397,7]
[388380308,1759138252481,-480.0,0.00027397,7]
[388380309,1759138252491,-480.0,0.00027397,7]
[388380310,1759138252499,-1564.98,0.00027397,7]
[388380311,1759138252509,-480.0,0.00027397,7]
[388380312,1759138252518,-480.0,0.00027397,7]
[388380313,1759138252528,-480.0,0.00027397,7]
[388380314,1759138252537,-527.52,0.00027397,7]
[388380315,1759138252546,-480.0,0.00027397,7]
[388380316,1759138252555,-480.0,0.00027397,7]
[388380317,1759138252565,-480.0,0.00027397,7]
[388380318,1759138252574,-786.21,0.00027397,7]
[388380319,1759138252583,-711.47,0.00027397,7]
[388380320,1759138252593,-3665.95,0.00027397,7]
[388380321,1759138252602,-480.0,0.00027397,7]
[388380322,1759138252611,-726.67,0.00027397,7]
[388380323,1759138252620,-480.0,0.00027397,7]
[388380324,1759138252630,-1212.48,0.00027397,7]
[388380325,1759138252640,-480.0,0.00027397,7]
[388380326,1759138252649,-480.0,0.00027397,7]
[388380327,1759138252660,-480.0,0.00027397,7]
[388380328,1759138252670,-480.0,0.00027397,7]
[388380329,1759138252679,-480.0,0.00027397,7]
[388380330,1759138252688,-1000.0,0.00027397,7]
[388380331,1759138252698,-480.74465385,0.00027397,7]
[388380332,1759138252708,-480.0,0.00027397,7]
[388380333,1759138252717,-2712.06,0.00027397,7]
[388380334,1759138252727,-1883.77,0.00027397,7]
[388380335,1759138252737,-480.0,0.00027397,7]
[388380336,1759138252746,-480.0,0.00027397,7]
[388380337,1759138252756,-480.0,0.00027397,7]
[388380338,1759138252765,-566.89362169,0.00027397,7]
[388380339,1759138252775,-177.530435,0.00027397,7]
[388380340,1759138252784,-218.61128393,0.00027397,7]
[388380341,1759138252793,-480.0,0.00027397,7]
[388380342,1759138252803,-480.0,0.00027397,7]
[388380343,1759138252812,-480.4966852,0.00027397,7]
[388380344,1759138252821,-721.5,0.00027397,7]
[388380345,1759138252830,-2142.96,0.00027397,7]
[388380346,1759138252839,-480.0,0.00027397,7]
[388380347,1759138252848,-480.0,0.00027397,7]
[388380348,1759138252856,-528.27,0.00027397,7]
[388380349,1759138252864,-1021.287304,0.00027397,7]
[388380350,1759138252873,-1021.287304,0.00027397,7]
[388380351,1759138252882,-480.0,0.00027397,7]
[388380352,1759138252891,-480.0,0.00027397,7]
[388380353,1759138252899,-790.29,0.00027397,7]
[388380354,1759138252909,-1021.287304,0.00027397,7]
[388380355,1759138252918,-1021.287304,0.00027397,7]
[388380356,1759138252927,-1021.287304,0.00027397,7]
[388380357,1759138252937,-1021.287304,0.00027397,7]
[388380358,1759138252946,-1205.65,0.00027397,7]
[388380359,1759138252956,-1021.287304,0.00027397,7]
[388380360,1759138252965,-1021.287305,0.00027397,7]
[388380361,1759138252974,-557.83,0.00027397,7]
[388380362,1759138252984,-480.0,0.00027397,7]
[388380363,1759138252993,-480.0,0.00027397,7]
[388380364,1759138253001,-480.0,0.00027397,7]
[388380365,1759138253009,-480.0,0.00027397,7]
[388380366,1759138253018,-480.0,0.00027397,7]
[388380367,1759138253027,-480.0,0.00027397,7]
[388380368,1759138253038,-480.0,0.00027397,7]
[388380369,1759138253048,-480.0,0.00027397,7]
[388380370,1759138253061,-151.0,0.00027397,7]
[388380371,1759138253071,-2102.49,0.00027397,7]
[388380372,1759138253081,-949.03,0.00027397,7]
[388380373,1759138253091,-482.29001075,0.00027397,7]
[388380374,1759138253102,-911.76,0.00027397,7]
[388380375,1759138253111,-1189.57,0.00027397,7]
[388380376,1759138253120,-585.19,0.00027397,7]
[388380377,1759138253129,-480.0,0.00027397,7]
[388380378,1759138253139,-480.0,0.00027397,7]
[388380379,1759138253148,-480.0,0.00027397,7]
[388380380,1759138253158,-3418.3,0.00027397,7]
[388380381,1759138253167,-480.0,0.00027397,7]
[388380382,1759138253177,-603.75,0.00027397,7]
[388380383,1759138253187,-480.0,0.00027397,7]
[388380384,1759138253197,-480.0,0.00027397,7]
[388380385,1759138253206,-480.0,0.00027397,7]
[388380386,1759138253215,-1875.11,0.00027397,7]
[388380387,1759138253225,-879.25,0.00027397,7]
[388380388,1759138253234,-1856.71,0.00027397,7]
[388380389,1759138253244,-2414.31,0.00027397,7]
[388380390,1759138253254,-1586.8,0.00027397,7]
[388380391,1759138253263,-1034.45,0.00027397,7]
[388380392,1759138253272,-480.0,0.00027397,7]
[388380393,1759138253282,-854.06,0.00027397,7]
[388380394,1759138253291,-772.28,0.00027397,7]
[388380395,1759138253301,-151.0,0.00027397,7]
[388380396,1759138253309,-151.0,0.00027397,7]
[388380397,1759138253319,-875.33,0.00027397,7]
[388380398,1759138253329,-626.0,0.00027397,7]
[388380399,1759138253338,-480.0,0.00027397,7]
[388380400,1759138253348,-480.0,0.00027397,7]
[388380401,1759138253357,-555.8,0.00027397,7]
[388380402,1759138253367,-523.15,0.00027397,7]
[388380403,1759138253376,-6642.05,0.00027397,3]
[388380404,1759138253386,-3809.93,0.00027397,7]
[388380405,1759138253395,-756.4,0.00027397,7]
[388380406,1759138253404,-480.0,0.00027397,7]
[388380407,1759138253414,-1640.84,0.00027397,7]
[388380408,1759138253423,-811.45,0.00027397,7]
[388380409,1759138253433,-1023.87,0.00027397,7]
[388380410,1759138253442,-1214.29,0.00027397,7]
[388380411,1759138253452,-201.881643,0.00027397,7]
[388380412,1759138253462,-480.0,0.00027397,7]
[388380413,1759138253471,-1384.27,0.00027397,7]
[388380414,1759138253481,-480.0,0.00027397,7]
[388380415,1759138253490,-3267.08,0.00027397,7]
[388380416,1759138253500,-480.0,0.00027397,7]
[388380417,1759138253509,-3800.0,0.00027397,7]
[388380418,1759138253519,-669.99,0.00027397,7]
[388380419,1759138253528,-480.0,0.00027397,7]
[388380420,1759138253538,-480.0,0.00027397,7]
[388380421,1759138253547,-575.52,0.00027397,7]
[388380422,1759138253557,-480.0,0.00027397,7]
[388380423,1759138253566,-151.0,0.00027397,7]
[388380424,1759138253575,-151.0,0.00027397,7]
[388380425,1759138253584,-897.38,0.00027397,7]
[388380426,1759138253593,-480.0,0.00027397,7]
[388380427,1759138253601,-151.0,0.00027397,7]
[388380428,1759138253609,-151.0,0.00027397,7]
[388380429,1759138253618,-480.0,0.00027397,7]
[388380430,1759138253627,-151.0,0.00027397,7]